fUSD/lending_fUSD_20260531
["ID","MTS","AMOUNT","RATE_DAILY","PERIOD"]
[423567289,1780238044000,1175.0,0.0003013,120]
[423567290,1780238045000,992.0,0.0003013,120]
[423567291,1780238047000,4580.0,0.0003013,120]
[423567292,1780238048000,17205.0,0.0003013,120]
[423567293,1780238104000,319.0,0.0003013,120]
[423567294,1780238106000,8483.0,0.0003013,120]
[423567295,1780238164000,1962.61721446,0.0003013,120]
[423567296,1780238248000,500.0,0.00030137,120]
[423567297,1780238360000,500.0,0.0003013,120]
[423567299,1780238644000,190.0,0.0003013,120]
[423567300,1780238646000,1658.0,0.0003013,120]
[423567301,1780238700000,315.0,0.0003013,120]
[423567302,1780238703000,719.0,0.0003013,120]
[423567303,1780238763000,815.0,0.0003013,120]
[423567304,1780238766000,5011.72851085,0.0003013,120]
[423567305,1780238774000,1713.55,0.00030137,120]
[423567306,1780238810000,500.0,0.0003013,120]
[423567307,1780238940000,1000.0,0.00030136,120]
[423567314,1780238953000,-125.78939613,0.00010744,2]
[423567312,1780238953000,-209.17060647,0.00010199,2]
[423567311,1780238953000,-231.0,0.00010199,2]
[423567310,1780238953000,-150.0,0.00010099,2]
[423567313,1780238953000,-1992.75739,0.00010689,2]
[423567309,1780238953000,-284.0702484,0.00010012,2]
[423567308,1780238953000,-282.75014464,0.0001,2]
[423567346,1780239032000,-500.0,0.00011375,2]
[423567347,1780239032000,-500.0,0.00011375,2]
[423567344,1780239032000,-500.0,0.00011375,2]
[423567342,1780239032000,-500.0,0.00011375,2]
[423567345,1780239032000,-500.0,0.00011375,2]
[423567343,1780239032000,-500.0,0.00011375,2]
[423567348,1780239032000,-500.0,0.00011375,2]
[423567341,1780239032000,-500.0,0.00011375,2]
[423567355,1780239032000,-500.0,0.00011375,2]
[423567351,1780239032000,-500.0,0.00011375,2]
[423567362,1780239032000,-500.0,0.00011375,2]
[423567353,1780239032000,-500.0,0.00011375,2]
[423567357,1780239032000,-500.0,0.00011375,2]
[423567360,1780239032000,-500.0,0.00011375,2]
[423567363,1780239032000,-500.0,0.00011375,2]
[423567365,1780239032000,-500.0,0.00011375,2]
[423567367,1780239032000,-500.0,0.00011375,2]
[423567366,1780239032000,-500.0,0.00011375,2]
[423567340,1780239032000,-500.0,0.00011375,2]
[423567369,1780239032000,-500.0,0.00011375,2]
[423567373,1780239032000,-500.0,0.00011375,2]
[423567349,1780239032000,-500.0,0.00011375,2]
[423567336,1780239032000,-500.0,0.00011375,2]
[423567318,1780239032000,-250.0,0.0001076,2]
[423567339,1780239032000,-327.4938552,0.00011375,2]
[423567370,1780239032000,-500.0,0.00011375,2]
[423567315,1780239032000,-1004.65352005,0.000107,2]
[423567317,1780239032000,-956.5825924,0.00010744,2]
[423567319,1780239032000,-2190.7874076,0.00010777,2]
[423567321,1780239032000,-1200.0,0.00010793,2]
[423567320,1780239032000,-1581.5925924,0.00010777,2]
[423567322,1780239032000,-5979.64,0.00010794,2]
[423567324,1780239032000,-855.51,0.00010824,2]
[423567325,1780239032000,-150.0,0.00010959,2]
[423567323,1780239032000,-1000.0,0.00010801,2]
[423567328,1780239032000,-304.81936638,0.00011055,2]
[423567326,1780239032000,-250.0,0.00010981,2]
[423567327,1780239032000,-2530.69934989,0.00011,2]
[423567329,1780239032000,-425.44,0.000112,2]
[423567330,1780239032000,-163.65,0.00011202,2]
[423567331,1780239032000,-352.69,0.0001123,2]
[423567333,1780239032000,-381.51,0.00011269,2]
[423567334,1780239032000,-163.65,0.00011349,2]
[423567332,1780239032000,-156.95,0.00011255,2]
[423567338,1780239032000,-500.0,0.00011375,2]
[423567335,1780239032000,-233.39938573,0.00011375,2]
[423567337,1780239032000,-500.0,0.00011375,2]
[423567368,1780239032000,-500.0,0.00011375,2]
[423567316,1780239032000,-917.62801147,0.00010744,2]
[423567371,1780239032000,-500.0,0.00011375,2]
[423567399,1780239032000,-150.0,0.00011688,2]
[423567407,1780239032000,-150.0,0.00011753,2]
[423567401,1780239032000,-150.0,0.00011688,2]
[423567404,1780239032000,-150.0,0.00011688,2]
[423567402,1780239032000,-150.0,0.00011688,2]
[423567405,1780239032000,-1000.0,0.000117,4]
[423567409,1780239032000,-150.0,0.00011777,2]
[423567406,1780239032000,-150.0,0.00011732,2]
[423567410,1780239032000,-163.65,0.00011791,2]
[423567408,1780239032000,-158.76,0.00011775,2]
[423567403,1780239032000,-150.0,0.00011688,2]
[423567411,1780239032000,-1600.0,0.000118,4]
[423567412,1780239032000,-150.0,0.00011818,2]
[423567417,1780239032000,-150.0,0.00011873,2]
[423567416,1780239032000,-1680.0,0.00011872,2]
[423567414,1780239032000,-150.0,0.00011822,2]
[423567418,1780239032000,-150.0,0.00011882,2]
[423567420,1780239032000,-7937.77264958,0.00011901,2]
[423567419,1780239032000,-2100.0,0.000119,4]
[423567415,1780239032000,-150.0,0.00011867,2]
[423567372,1780239032000,-500.0,0.00011375,2]
[423567400,1780239032000,-151.29500077,0.00011688,2]
[423567398,1780239032000,-150.0,0.00011688,2]
[423567413,1780239032000,-250.0,0.00011818,2]
[423567390,1780239032000,-500.0,0.00011375,2]
[423567375,1780239032000,-500.0,0.00011375,2]
[423567376,1780239032000,-500.0,0.00011375,2]
[423567377,1780239032000,-500.0,0.00011375,2]
[423567380,1780239032000,-500.0,0.00011375,2]
[423567379,1780239032000,-500.0,0.00011375,2]
[423567385,1780239032000,-500.0,0.00011375,2]
[423567381,1780239032000,-500.0,0.00011375,2]
[423567374,1780239032000,-500.0,0.00011375,2]
[423567382,1780239032000,-168.91886213,0.00011375,2]
[423567384,1780239032000,-500.0,0.00011375,2]
[423567378,1780239032000,-500.0,0.00011375,2]
[423567388,1780239032000,-500.0,0.00011375,2]
[423567386,1780239032000,-500.0,0.00011375,2]
[423567387,1780239032000,-500.0,0.00011375,2]
[423567389,1780239032000,-500.0,0.00011375,2]
[423567391,1780239032000,-500.0,0.00011375,2]
[423567392,1780239032000,-1616.93,0.00011376,2]
[423567393,1780239032000,-158.76,0.00011395,2]
[423567396,1780239032000,-163.65,0.00011644,2]
[423567395,1780239032000,-500.0,0.000116,4]
[423567397,1780239032000,-150.0,0.00011644,2]
[423567383,1780239032000,-500.0,0.00011375,2]
[423567394,1780239032000,-163.65,0.00011496,2]
[423567424,1780239033000,-163.65,0.00011939,2]
[423567422,1780239033000,-16.94462125,0.00011912,2]
[423567421,1780239033000,-150.0,0.00011904,2]
[423567423,1780239033000,-133.05537875,0.00011912,2]
[423567427,1780239033000,-150.0,0.00011956,2]
[423567429,1780239033000,-114.83411704,0.00011968,2]
[423567426,1780239033000,-150.0,0.00011947,2]
[423567430,1780239033000,-3406.35949787,0.00011968,2]
[423567428,1780239033000,-434.23431974,0.00011958,2]
[423567425,1780239033000,-150.0,0.00011947,2]
[423567453,1780239038000,-2000.0,0.00012068,2]
[423567455,1780239038000,-5000.0,0.00012068,2]
[423567460,1780239038000,-1178.51886367,0.00012068,2]
[423567454,1780239038000,-2500.0,0.00012068,2]
[423567450,1780239038000,-150.0,0.00012046,2]
[423567451,1780239038000,-40526.3,0.00012055,2]
[423567452,1780239038000,-150.0,0.00012059,2]
[423567449,1780239038000,-150.0,0.00012012,2]
[423567447,1780239038000,-150.0,0.00012001,2]
[423567446,1780239038000,-1472154.71921589,0.00011968,2]
[423567445,1780239038000,-4144.1699421,0.00011968,2]
[423567444,1780239038000,-288.18867524,0.00011968,2]
[423567443,1780239038000,-14026.99248684,0.00011968,2]
[423567442,1780239038000,-1260.45337226,0.00011968,2]
[423567441,1780239038000,-1478.63014659,0.00011968,2]
[423567440,1780239038000,-3125.65254617,0.00011968,2]
[423567438,1780239038000,-500.0,0.00011649,2]
[423567439,1780239038000,-500.0,0.00011923,2]
[423567437,1780239038000,-500.0,0.00011375,2]
[423567456,1780239038000,-33237.5546,0.00012068,2]
[423567448,1780239038000,-150.0,0.00012012,2]
[423567462,1780239038000,-150.0,0.00012077,2]
[423567457,1780239038000,-237.12549559,0.00012068,2]
[423567458,1780239038000,-1481.20703273,0.00012068,2]
[423567459,1780239038000,-5898.16675138,0.00012068,2]
[423567481,1780239038000,-150.0,0.00012168,2]
[423567482,1780239038000,-600.0,0.00012168,2]
[423567483,1780239038000,-150.0,0.0001218,2]
[423567480,1780239038000,-155.0,0.00012168,2]
[423567479,1780239038000,-2500000.0,0.00012168,2]
[423567476,1780239038000,-500.0,0.00012167,2]
[423567477,1780239038000,-588.00964612,0.00012167,2]
[423567475,1780239038000,-295.4839761,0.00012167,2]
[423567472,1780239038000,-434.23431974,0.00012158,2]
[423567470,1780239038000,-158.76,0.00012155,2]
[423567478,1780239038000,-217.77981445,0.00012167,2]
[423567474,1780239038000,-445.77475696,0.00012167,2]
[423567471,1780239038000,-250.0,0.00012156,2]
[423567469,1780239038000,-150.0,0.00012142,2]
[423567468,1780239038000,-150.0,0.00012135,2]
[423567467,1780239038000,-7773.967759,0.0001213,2]
[423567463,1780239038000,-163.65,0.00012086,2]
[423567466,1780239038000,-150.0,0.00012121,2]
[423567464,1780239038000,-2000.0,0.00012086,2]
[423567465,1780239038000,-150.0,0.00012091,2]
[423567473,1780239038000,-500.0,0.00012167,2]
[423567461,1780239038000,-508.07034936,0.00012068,2]
[423567553,1780239039000,-150.0,0.00012404,2]
[423567549,1780239039000,-4544.61689433,0.00012343,2]
[423567548,1780239039000,-150.0,0.00012337,2]
[423567550,1780239039000,-150.0,0.00012359,2]
[423567555,1780239039000,-150.0,0.00012449,2]
[423567547,1780239039000,-150.0,0.00012337,2]
[423567552,1780239039000,-150.0,0.00012402,2]
[423567554,1780239039000,-150.0,0.0001243,2]
[423567551,1780239039000,-163.65,0.00012381,2]
[423567542,1780239039000,-151.0,0.00012277,2]
[423567545,1780239039000,-7937.77264954,0.00012329,2]
[423567557,1780239039000,-150.0,0.00012467,2]
[423567546,1780239039000,-150.0,0.00012337,2]
[423567556,1780239039000,-150.0,0.00012467,2]
[423567569,1780239039000,-150.0,0.00012494,2]
[423567559,1780239039000,-151.0,0.00012481,2]
[423567574,1780239039000,-150.0,0.00012553,2]
[423567572,1780239039000,-158.76,0.00012535,2]
[423567570,1780239039000,-163.38,0.00012512,2]
[423567571,1780239039000,-150.0,0.00012532,2]
[423567544,1780239039000,-150.0,0.00012315,2]
[423567565,1780239039000,-151.0,0.00012481,2]
[423567558,1780239039000,-151.0,0.00012481,2]
[423567567,1780239039000,-151.0,0.00012481,2]
[423567566,1780239039000,-151.0,0.00012481,2]
[423567562,1780239039000,-2164.528491,0.00012481,2]
[423567563,1780239039000,-2164.528491,0.00012481,2]
[423567564,1780239039000,-2164.528491,0.00012481,2]
[423567561,1780239039000,-2164.528491,0.00012481,2]
[423567560,1780239039000,-151.0,0.00012481,2]
[423567568,1780239039000,-151.0,0.00012481,2]
[423567543,1780239039000,-151.0,0.00012277,2]
[423567520,1780239039000,-2946.69806302,0.0001227,2]
[423567535,1780239039000,-2164.528491,0.00012277,2]
[423567573,1780239039000,-150.0,0.00012538,2]
[423567484,1780239039000,-500.0,0.00012197,2]
[423567486,1780239039000,-150.0,0.00012207,2]
[423567488,1780239039000,-163.65,0.00012233,2]
[423567490,1780239039000,-150.0,0.00012244,2]
[423567485,1780239039000,-150.0,0.00012207,2]
[423567487,1780239039000,-150.0,0.00012225,2]
[423567492,1780239039000,-6273.4931,0.00012247,2]
[423567498,1780239039000,-151.0,0.00012268,2]
[423567494,1780239039000,-151.0,0.00012268,2]
[423567496,1780239039000,-151.0,0.00012268,2]
[423567500,1780239039000,-2164.528491,0.00012268,2]
[423567509,1780239039000,-151.0,0.00012268,2]
[423567504,1780239039000,-2164.528491,0.00012268,2]
[423567537,1780239039000,-2164.528491,0.00012277,2]
[423567502,1780239039000,-2164.528491,0.00012268,2]
[423567512,1780239039000,-151.0,0.00012268,2]
[423567508,1780239039000,-151.0,0.00012268,2]
[423567513,1780239039000,-151.0,0.00012268,2]
[423567515,1780239039000,-150.0,0.0001227,2]
[423567518,1780239039000,-1518.69740218,0.0001227,2]
[423567522,1780239039000,-1892.95457502,0.0001227,2]
[423567524,1780239039000,-150.0,0.00012272,2]
[423567526,1780239039000,-151.0,0.00012277,2]
[423567528,1780239039000,-151.0,0.00012277,2]
[423567530,1780239039000,-151.0,0.00012277,2]
[423567532,1780239039000,-2164.528491,0.00012277,2]
[423567541,1780239039000,-151.0,0.00012277,2]
[423567539,1780239039000,-151.0,0.00012277,2]
[423567534,1780239039000,-2164.528491,0.00012277,2]
[423567506,1780239039000,-2164.528491,0.00012268,2]
[423567575,1780239039000,-150.0,0.00012583,2]
[423567622,1780239039000,-151.0,0.00012687,2]
[423567576,1780239039000,-151.0,0.00012584,2]
[423567604,1780239039000,-500.0,0.00012633,2]
[423567609,1780239039000,-500.0,0.00012633,2]
[423567620,1780239039000,-381.51,0.00012678,2]
[423567615,1780239039000,-216.3481031,0.00012639,2]
[423567617,1780239039000,-150.0,0.00012662,2]
[423567619,1780239039000,-150.0,0.00012673,2]
[423567623,1780239039000,-298.316198,0.00012687,2]
[423567616,1780239039000,-864.52702,0.00012639,2]
[423567621,1780239039000,-151.0,0.00012687,2]
[423567614,1780239039000,-350.90097659,0.00012633,2]
[423567618,1780239039000,-150.0,0.00012662,2]
[423567578,1780239039000,-151.0,0.00012584,2]
[423567625,1780239039000,-2164.528491,0.00012687,2]
[423567626,1780239039000,-2164.528491,0.00012687,2]
[423567613,1780239039000,-500.0,0.00012633,2]
[423567627,1780239039000,-2164.528493,0.00012687,2]
[423567628,1780239039000,-151.0,0.00012687,2]
[423567630,1780239039000,-151.0,0.00012687,2]
[423567631,1780239039000,-500.0,0.00012704,2]
[423567636,1780239039000,-500.0,0.00012704,2]
[423567634,1780239039000,-500.0,0.00012704,2]
[423567635,1780239039000,-500.0,0.00012704,2]
[423567632,1780239039000,-500.0,0.00012704,2]
[423567633,1780239039000,-500.0,0.00012704,2]
[423567637,1780239039000,-500.0,0.00012704,2]
[423567638,1780239039000,-500.0,0.00012704,2]
[423567639,1780239039000,-500.0,0.00012704,2]
[423567641,1780239039000,-500.0,0.00012704,2]
[423567640,1780239039000,-500.0,0.00012704,2]
[423567642,1780239039000,-500.0,0.00012704,2]
[423567629,1780239039000,-151.0,0.00012687,2]
[423567606,1780239039000,-500.0,0.00012633,2]
[423567624,1780239039000,-2164.528491,0.00012687,2]
[423567603,1780239039000,-504.4235805,0.00012633,2]
[423567582,1780239039000,-2164.528491,0.00012584,2]
[423567608,1780239039000,-500.0,0.00012633,2]
[423567580,1780239039000,-2164.528491,0.00012584,2]
[423567581,1780239039000,-2164.528491,0.00012584,2]
[423567579,1780239039000,-2164.528491,0.00012584,2]
[423567584,1780239039000,-151.0,0.00012584,2]
[423567583,1780239039000,-151.0,0.00012584,2]
[423567586,1780239039000,-175.73681,0.00012584,2]
[423567585,1780239039000,-151.0,0.00012584,2]
[423567595,1780239039000,-500.0,0.00012633,2]
[423567590,1780239039000,-500.0,0.00012633,2]
[423567591,1780239039000,-500.0,0.00012633,2]
[423567594,1780239039000,-500.0,0.00012633,2]
[423567588,1780239039000,-150.0,0.00012615,2]
[423567589,1780239039000,-150.0,0.00012628,2]
[423567577,1780239039000,-151.0,0.00012584,2]
[423567593,1780239039000,-500.0,0.00012633,2]
[423567611,1780239039000,-500.0,0.00012633,2]
[423567587,1780239039000,-150.0,0.00012597,2]
[423567601,1780239039000,-500.0,0.00012633,2]
[423567610,1780239039000,-212.0,0.00012633,2]
[423567605,1780239039000,-500.0,0.00012633,2]
[423567600,1780239039000,-500.0,0.00012633,2]
[423567607,1780239039000,-500.0,0.00012633,2]
[423567612,1780239039000,-500.0,0.00012633,2]
[423567599,1780239039000,-500.0,0.00012633,2]
[423567598,1780239039000,-500.0,0.00012633,2]
[423567596,1780239039000,-500.0,0.00012633,2]
[423567592,1780239039000,-500.0,0.00012633,2]
[423567597,1780239039000,-500.0,0.00012633,2]
[423567602,1780239039000,-500.0,0.00012633,2]
[423567657,1780239040000,-150.0,0.00012852,2]
[423567663,1780239040000,-1483.78,0.00012907,2]
[423567656,1780239040000,-150.0,0.00012807,2]
[423567659,1780239040000,-500.0,0.00012891,2]
[423567664,1780239040000,-618.24,0.00012921,2]
[423567665,1780239040000,-150.0,0.00012921,2]
[423567666,1780239040000,-151.0,0.00012925,2]
[423567667,1780239040000,-200.0,0.00012938,2]
[423567669,1780239040000,-200.0,0.00012939,2]
[423567658,1780239040000,-150.0,0.00012856,2]
[423567668,1780239040000,-200.0,0.00012938,2]
[423567660,1780239040000,-45973.29569724,0.00012893,2]
[423567662,1780239040000,-500.0,0.000129,4]
[423567646,1780239040000,-150.0,0.00012718,2]
[423567655,1780239040000,-150.0,0.00012801,2]
[423567654,1780239040000,-2700.0,0.000128,4]
[423567652,1780239040000,-45973.29569724,0.0001279,2]
[423567653,1780239040000,-150.0,0.00012792,2]
[423567651,1780239040000,-150.0,0.0001277,2]
[423567648,1780239040000,-150.0,0.00012727,2]
[423567643,1780239040000,-505.11872968,0.00012704,2]
[423567645,1780239040000,-255.0,0.00012715,2]
[423567650,1780239040000,-150.0,0.00012762,2]
[423567649,1780239040000,-7937.77264954,0.00012758,2]
[423567644,1780239040000,-156.0,0.00012704,2]
[423567647,1780239040000,-150.0,0.00012727,2]
[423567670,1780239040000,-200.0,0.00012939,2]
[423567661,1780239040000,-150.0,0.00012897,2]
[423567671,1780239040000,-150.0,0.00012942,2]
[423567681,1780239040000,-500.0,0.00012959,2]
[423567677,1780239040000,-150.25278799,0.00012959,2]
[423567702,1780239040000,-571.95286726,0.00012991,2]
[423567701,1780239040000,-730.57601769,0.00012991,2]
[423567698,1780239040000,-150.0,0.00012986,2]
[423567700,1780239040000,-1890.96348865,0.00012991,2]
[423567697,1780239040000,-157.6354537,0.00012986,2]
[423567699,1780239040000,-434.23431974,0.00012989,2]
[423567696,1780239040000,-150.0,0.00012986,2]
[423567694,1780239040000,-150.0,0.00012986,2]
[423567695,1780239040000,-150.0,0.00012986,2]
[423567692,1780239040000,-81.33019745,0.00012978,2]
[423567693,1780239040000,-269.80331714,0.00012986,2]
[423567688,1780239040000,-77.13661708,0.00012963,2]
[423567690,1780239040000,-126.20007664,0.00012978,2]
[423567674,1780239040000,-500.0,0.00012959,2]
[423567686,1780239040000,-500.0,0.00012471,2]
[423567689,1780239040000,-207.5302741,0.00012978,2]
[423567672,1780239040000,-500.0,0.00012959,2]
[423567675,1780239040000,-500.0,0.00012959,2]
[423567676,1780239040000,-500.0,0.00012959,2]
[423567678,1780239040000,-500.0,0.00012959,2]
[423567680,1780239040000,-500.0,0.00012959,2]
[423567673,1780239040000,-218.52309198,0.00012959,2]
[423567682,1780239040000,-500.0,0.00012959,2]
[423567683,1780239040000,-500.0,0.00012959,2]
[423567685,1780239040000,-169044.3546719,0.00012963,2]
[423567684,1780239040000,-501.83615294,0.00012959,2]
[423567687,1780239040000,-500.0,0.00012745,2]
[423567679,1780239040000,-500.0,0.00012959,2]
[423567715,1780239043000,-4836.4331431,0.00012991,2]
[423567714,1780239043000,-1218.80847683,0.00012991,2]
[423567712,1780239043000,-403.20949978,0.00012991,2]
[423567713,1780239043000,-269.8451991,0.00012991,2]
[423567711,1780239043000,-366.97989938,0.00012991,2]
[423567723,1780239046000,-21098.2121806,0.00012996,2]
[423567721,1780239046000,-18615.32105077,0.00012996,2]
[423567720,1780239046000,-340.89413241,0.00012991,2]
[423567724,1780239046000,-150.0,0.00012998,2]
[423567722,1780239046000,-6259.76246587,0.00012996,2]
[423567725,1780239046000,-25513.52167276,0.00012999,2]
[423567726,1780239046000,-959.05856459,0.00012999,2]
[423567728,1780239046000,-814.39370128,0.00012999,2]
[423567727,1780239046000,-12957.25836996,0.00012999,2]
[423567730,1780239046000,-500.0,0.00012999,2]
[423567759,1780239250000,500.0,0.0003013,120]
[423567760,1780239304000,922.28,0.00030082,120]
[423567762,1780239584000,410.85149563,0.00030136,120]
[423567763,1780239638000,162.0,0.000301,120]
[423567764,1780239661000,8178.03095733,0.0003013,120]
[423567766,1780239682000,500.0,0.0003013,120]
[423567778,1780239690000,-250.0,0.00010881,2]
[423567781,1780239690000,-150.0,0.00011052,2]
[423567776,1780239690000,-500.0,0.00010881,2]
[423567777,1780239690000,-500.0,0.00010881,2]
[423567774,1780239690000,-1063.39997333,0.00010818,2]
[423567768,1780239690000,-300.0,0.00010661,2]
[423567773,1780239690000,-250.0,0.00010818,2]
[423567770,1780239690000,-1207.28834248,0.00010717,2]
[423567769,1780239690000,-29239.49,0.00010662,2]
[423567779,1780239690000,-886.79,0.00010947,2]
[423567771,1780239690000,-870.05452364,0.00010817,2]
[423567772,1780239690000,-500.0,0.00010818,2]
[423567780,1780239690000,-150.69,0.00011001,2]
[423567775,1780239690000,-335.47,0.00010821,2]
[423567786,1780239690000,-186.87,0.0001153,2]
[423567782,1780239690000,-186.87,0.0001128,2]
[423567795,1780239690000,-186.87,0.00011655,2]
[423567794,1780239690000,-6945.5510684,0.00011618,2]
[423567796,1780239690000,-305376.17850672,0.000117,2]
[423567791,1780239690000,-44367.09634065,0.000116,2]
[423567793,1780239690000,-41375.96612759,0.00011618,2]
[423567789,1780239690000,-186.87,0.00011593,2]
[423567783,1780239690000,-186.87,0.00011343,2]
[423567790,1780239690000,-1200.0,0.00011599,2]
[423567788,1780239690000,-858.319,0.00011564,2]
[423567785,1780239690000,-186.87,0.00011468,2]
[423567787,1780239690000,-215.61611719,0.00011539,2]
[423567784,1780239690000,-186.87,0.00011405,2]
[423567792,1780239690000,-150.0,0.00011616,2]
[423567797,1780239705000,-52000.0,0.000117,2]
[423567801,1780239738000,162.24,0.000301,120]
[423567806,1780239793000,-150.0,0.00011027,2]
[423567808,1780239793000,-1892.95457502,0.00011312,2]
[423567809,1780239793000,-579.24190369,0.00011312,2]
[423567811,1780239793000,-150.0,0.00011699,2]
[423567810,1780239793000,-1000.0,0.00011699,2]
[423567812,1780239793000,-162.04232987,0.00011699,2]
[423567807,1780239793000,-771.7923836,0.00011312,2]
[423567814,1780239793000,-150781.14479328,0.000117,2]
[423567815,1780239793000,-1838.1522,0.000117,2]
[423567816,1780239793000,-3278.51228576,0.000117,2]
[423567817,1780239793000,-396.06480415,0.00011709,2]
[423567818,1780239793000,-186.87,0.00011718,2]
[423567813,1780239793000,-500.0,0.00011699,2]
[423567819,1780239793000,-181.64527902,0.00011741,2]
[423567820,1780239793000,-131.57944561,0.00011743,2]
[423567821,1780239827000,228.86,0.00030137,120]
[423567822,1780240117000,500.0,0.0003013,120]
[423567823,1780240140000,1000.0,0.00030136,120]
[423567848,1780240233000,-254.39071346,0.00010955,2]
[423567849,1780240233000,-508.0,0.00010955,2]
[423567842,1780240233000,-224.0517951,0.00010905,2]
[423567844,1780240233000,-124.9482049,0.00010905,2]
[423567841,1780240233000,-228.9,0.00010835,2]
[423567845,1780240233000,-263.32986874,0.00010955,2]
[423567843,1780240233000,-651.0,0.00010905,2]
[423567847,1780240233000,-402.50525596,0.00010955,2]
[423567846,1780240233000,-36.67013126,0.00010955,2]
[423567859,1780240238000,-35.10403058,0.00010955,2]
[423567860,1780240238000,-264.89596942,0.00010956,2]
[423567861,1780240239000,-1375.22254527,0.00010956,2]
[423568069,1780240241000,-252.76690883,0.00010956,2]
[423568068,1780240241000,-1064.632691,0.00010956,2]
[423568102,1780240241000,-871.73188548,0.00010956,2]
[423568104,1780240241000,-227.51692799,0.00010956,2]
[423568305,1780240244000,-125.80938487,0.00011013,2]
[423568303,1780240244000,-370.0596516,0.00010956,2]
[423568273,1780240244000,-76.40342041,0.00010956,2]
[423568563,1780240246000,-163.42,0.00011188,2]
[423568570,1780240246000,-673.98,0.0001123,2]
[423568572,1780240246000,-160.0,0.0001129,2]
[423568576,1780240246000,-673.98,0.00011504,2]
[423568574,1780240246000,-215.61611719,0.00011433,2]
[423568565,1780240246000,-2000.0,0.00011203,2]
[423568568,1780240246000,-1614.49,0.00011204,2]
[423568578,1780240246000,-6264.70508852,0.000116,2]
[423568581,1780240246000,-80021.36273327,0.000116,2]
[423568585,1780240246000,-8094.89985234,0.000116,2]
[423568600,1780240246000,-444.38778338,0.000116,2]
[423568561,1780240246000,-24.19061513,0.00011013,2]
[423568641,1780240247000,-2127.97029767,0.000116,2]
[423568644,1780240247000,-5628.29399626,0.000116,2]
[423568649,1780240247000,-1113.91908278,0.000116,2]
[423569520,1780240302000,768.56,0.00030082,120]
[423569521,1780240418000,150.0,0.00030136,120]
[423569522,1780240553000,500.0,0.0003013,120]
[423569524,1780240745000,661.0,0.0003013,120]
[423569525,1780240802000,608.0,0.0003013,120]
[423569526,1780240862000,280.0,0.0003013,120]
[423569529,1780240924000,413.0,0.0003013,120]
[423569530,1780240927000,3763.0,0.0003013,120]
[423569532,1780240977000,500.0,0.0003013,120]
[423569533,1780240982000,299.72589649,0.0003013,120]
[423569537,1780241341000,1000.0,0.00030135,120]
[423569543,1780241351000,-250.0,9.491e-05,2]
[423569539,1780241351000,-250.0,9.059e-05,2]
[423569538,1780241351000,-158.12,8.628e-05,2]
[423569541,1780241351000,-193.0,9.491e-05,2]
[423569542,1780241351000,-500.0,9.491e-05,2]
[423569540,1780241351000,-1200.0,9.49e-05,2]
[423569545,1780241351000,-500.0,9.491e-05,2]
[423569547,1780241351000,-170.1,9.734e-05,2]
[423569546,1780241351000,-250.0,9.491e-05,2]
[423569548,1780241351000,-694.9,9.973e-05,2]
[423569550,1780241351000,-170.1,9.99e-05,2]
[423569549,1780241351000,-181.23,9.979e-05,2]
[423569552,1780241351000,-433.467756,9.998e-05,2]